Workbook

Sheet Home
B6: Currency Conversion in Excel
B8: Learn how to Convert Currency in Excel with this free workbook. Read the article we provided and practice these in the practice section.
B11: Prepared By | C11: Md. Junaed-Ar-Rahman
B12: Reviewed By | C12: Aung Shine
B13: Last Update | C13: 15/11/2023
B14: Article Link | C14: How to Convert Currency in Excel
B16: Examples
B18: 1. Simple Arithmetic Formula to Convert Currency
B19: 2. Using Nested IF Formula for Currency Conversion
B20: 3. Using VLOOKUP to Convert Curency
B21: 4. INDEX-MATCH Formula to Convert Currency
B22: 5.Live Currency Conversion using Excel's Currency Converter
B23: 6. Currency Conversion Using Web Query
B24: 7. VBA Code to Convert Currency
B25: 8. Changing Default Currency
B27: Copyright © 2013-2023 ExcelDemy.com | All rights reserved.

Sheet Overview
B1: Currency Conversion in Excel
B3: Simple Arithmetic Formula >> | C3: Currency (USD) | D3: Currency to Convert | E3: Formula | F3: Converted Currency | H3: Currency | I3: Conversion Rate
C4: 30 | D4: EUR | E4: =_xlfn.FORMULATEXT(F4) -> =C4*I4 | F4: =C4*I4 -> 27.9 | H4: EUR | I4: 0.93
C5: 85 | D5: GBP | E5: =_xlfn.FORMULATEXT(F5) -> =C5*I5 | F5: =C5*I5 -> 68 | H5: GBP | I5: 0.8
H6: AUD | I6: 1.5
B7: Nested IF Formula >> | C7: Currency (USD) | D7: Currency to Convert | E7: Formula | F7: Converted Currency | H7: CAD | I7: 1.34
C8: 30 | D8: EUR | E8: =_xlfn.FORMULATEXT(F8) -> =IF(D$8="EUR",I$4,IF(D$8="GBP",I$5))*C8 | F8: =IF(D$8="EUR",I$4,IF(D$8="GBP",I$5))*C8 -> 27.9 | H8: CNY | I8: 7.11
C9: 85 | D9: GBP | E9: =_xlfn.FORMULATEXT(F9) -> =IF(D9="EUR",I$4,IF(D9="GBP",I$5))*C9 | F9: =IF(D9="EUR",I$4,IF(D9="GBP",I$5))*C9 -> 68 | H9: INR | I9: 82.6
B11: VLOOKUP Formula >> | C11: Currency (USD) | D11: Currency to Convert | E11: Formula | F11: Converted Currency
C12: 30 | D12: EUR | E12: =_xlfn.FORMULATEXT(F12) -> =VLOOKUP(D12,H$4:I$9,2,0)*C12 | F12: =VLOOKUP(D12,H$4:I$9,2,0)*C12 -> 27.9
C13: 85 | D13: GBP | E13: =_xlfn.FORMULATEXT(F13) -> =VLOOKUP(D13,H$4:I$9,2,0)*C13 | F13: =VLOOKUP(D13,H$4:I$9,2,0)*C13 -> 68
B15: INDEX-MATCH Formula >> | C15: Currency (USD) | D15: Currency to Convert | E15: Formula | F15: Converted Currency
C16: 30 | D16: EUR | E16: =_xlfn.FORMULATEXT(F16) -> =(INDEX(H$4:I$9,MATCH(D16,H$4:H$9,0),2))*C16 | F16: =(INDEX(H$4:I$9,MATCH(D16,H$4:H$9,0),2))*C16 -> 27.9
C17: 85 | D17: GBP | E17: =_xlfn.FORMULATEXT(F17) -> =(INDEX(H$4:I$9,MATCH(D17,H$4:H$9,0),2))*C17 | F17: =(INDEX(H$4:I$9,MATCH(D17,H$4:H$9,0),2))*C17 -> 68
B58: Back to Home

Sheet Simple Arithmetic
B2: Currency Conversion in Excel | H2: Currency Conversion in Excel
B4: Using Simple Arithmetic Formula | H4: Practice Yourself
B6: Currency | C6: Conversion Rate | E6: Currency in USD | F6: Converted to EUR | H6: Currency in USD | I6: Convert To:
B7: EUR | C7: 0.93 | E7: 10 | F7: =E7*C$7 -> 9.3 | H7: 10
B8: GBP | C8: 0.8 | E8: 55 | F8: =E8*C$7 -> 51.15 | H8: 55
B9: AUD | C9: 1.5 | E9: 30 | F9: =E9*C$7 -> 27.9 | H9: 30
B10: CAD | C10: 1.34 | E10: 85 | F10: =E10*C$7 -> 79.05 | H10: 85
B11: CNY | C11: 7.11 | E11: 98 | F11: =E11*C$7 -> 91.14 | H11: 98
B12: INR | C12: 82.6 | E12: 95.66 | F12: =E12*C$7 -> 88.9638 | H12: 95.66
B13: BZR | C13: 4.92 | E13: 105 | F13: =E13*C$7 -> 97.65 | H13: 105
B14: ZAR | C14: 19.23 | E14: 120 | F14: =E14*C$7 -> 111.6 | H14: 120
H15: 130.25
H16: 141.96
H17: 200
B34: Back to Home

Sheet Nested IF Formula
B1: Currency Conversion in Excel | I1: Currency Conversion in Excel
B3: Using Nested IF Formula | I3: Practice Yourself
B5: Currency (USD) | C5: Currency to Convert | D5: Converted Currency | I5: Currency (USD) | J5: Currency to Convert | K5: Converted Currency
B6: 10 | C6: USD | D6: =IF(C6="USD",C$28,IF(C6="EUR",C$18,IF(C6="GBP",C$19, IF(C6="INR",C$23,IF(C6="CAD",C$21,IF(C6="JPY",C$27))))))*B6 -> 10 | I6: 10 | J6: USD
B7: 10 | C7: EUR | D7: 9.3 | I7: 10 | J7: EUR
B8: 10 | C8: GBP | D8: 8 | I8: 10 | J8: GBP
B9: 10 | C9: INR | D9: 826 | I9: 10 | J9: INR
B10: 10 | C10: CAD | D10: 13.4 | I10: 10 | J10: CAD
B11: 10 | C11: JPY | D11: 1277.7 | I11: 10 | J11: JPY
B12: 105 | C12: EUR | D12: 97.65 | I12: 105 | J12: EUR
B13: 120 | C13: GBP | D13: 96 | I13: 120 | J13: GBP
B14: 130.25 | C14: INR | D14: 10758.65 | I14: 130.25 | J14: INR
B15: 141.96 | C15: USD | D15: 141.96 | I15: 141.96 | J15: USD
B17: Currency | C17: Conversion Rate
B18: EUR | C18: 0.93
B19: GBP | C19: 0.8
B20: AUD | C20: 1.5
B21: CAD | C21: 1.34
B22: CNY | C22: 7.11
B23: INR | C23: 82.6
B24: BZR | C24: 4.92
B25: ZAR | C25: 19.23
B26: HKD | C26: 7.84
B27: JPY | C27: 127.77
B28: USD | C28: 1
B34: Back to Home

Sheet VLOOKUP Formula
B2: Currency Conversion in Excel | L2: Currency Conversion in Excel
B4: Using VLOOKUP Formula | L4: Practice yourself
B6: Currency | C6: Conversion Rate | E6: Amount (USD) | F6: ="Convert to " & F7 -> Convert to CAD | G6: Converted Currency | L6: Currency | M6: Conversion Rate | O6: Amount(USD) | P6: ="Convert to " & P7 -> Convert to | Q6: Converted Currency
B7: EUR | C7: 0.93 | E7: 160 | F7: CAD | G7: =VLOOKUP(F7,B7:C15,2,0)*E7 -> 214.4 | L7: EUR | M7: 0.93 | O7: 50
B8: GBP | C8: 0.8 | L8: GBP | M8: 0.8
B9: AUD | C9: 1.5 | L9: AUD | M9: 1.5
B10: CAD | C10: 1.34 | L10: CAD | M10: 1.34
B11: CNY | C11: 7.11 | L11: CNY | M11: 7.11
B12: INR | C12: 82.6 | L12: INR | M12: 82.6
B13: BZR | C13: 4.92 | L13: BZR | M13: 4.92
B14: ZAR | C14: 19.23 | L14: ZAR | M14: 19.23
B15: HKD | C15: 7.84 | L15: HKD | M15: 7.84
B20: Back to Home

Sheet INDEX-MATCH Formula
B2: Currency Conversion in Excel | K2: Currency Conversion in Excel
B4: Using INDEX-MATCH Formula | K4: Practice Yourself
B6: Currency | C6: Conversion Rate | E6: Amount (USD) | F6: ="Convert to "&F7 -> Convert to CAD | G6: Converted Currency | K6: Currency | L6: Conversion Rate | N6: Amount(USD) | O6: ="Convert to "&O7 -> Convert to | P6: Converted Currency
B7: EUR | C7: 0.93 | E7: 50 | F7: CAD | G7: =(INDEX(B7:C15,MATCH(F7,B7:B15,0),2))*E7 -> 67 | K7: EUR | L7: 0.93 | N7: 50
B8: GBP | C8: 0.8 | K8: GBP | L8: 0.8
B9: AUD | C9: 1.5 | K9: AUD | L9: 1.5
B10: CAD | C10: 1.34 | K10: CAD | L10: 1.34
B11: CNY | C11: 7.11 | K11: CNY | L11: 7.11
B12: INR | C12: 82.6 | K12: INR | L12: 82.6
B13: BZR | C13: 4.92 | K13: BZR | L13: 4.92
B14: ZAR | C14: 19.23 | K14: ZAR | L14: 19.23
B15: HKD | C15: 7.84 | K15: HKD | L15: 7.84
B22: Back to Home

Sheet Live Currency
B2: Currency Conversion in Excel | H2: Currency Conversion in Excel
B4: Using Live Currency Converter | H4: Practice Yourself
B6: Amount | C6: Currency Conversion Pair | D6: Price | E6: Converted Currency | H6: Amount | I6: Currency Conversion Pair | J6: Exchange Ratio | K6: Converted Amount
B7: 30 | D7: =_FV(Table10[[#This Row],[Currency Conversion Pair]],"Price") -> 0.9107 | E7: =Table10[[#This Row],[Amount]]*Table10[[#This Row],[Price]] -> 27.321 | H7: 30
B8: 11 | D8: =_FV(Table10[[#This Row],[Currency Conversion Pair]],"Price") -> 0.7882 | E8: =Table10[[#This Row],[Amount]]*Table10[[#This Row],[Price]] -> 8.6702 | H8: 11
B9: 24 | D9: =_FV(Table10[[#This Row],[Currency Conversion Pair]],"Price") -> 1.5108 | E9: =Table10[[#This Row],[Amount]]*Table10[[#This Row],[Price]] -> 36.2592 | H9: 24
B10: 84 | D10: =_FV(Table10[[#This Row],[Currency Conversion Pair]],"Price") -> 1.357 | E10: =Table10[[#This Row],[Amount]]*Table10[[#This Row],[Price]] -> 113.988 | H10: 84
B11: 57 | D11: =_FV(Table10[[#This Row],[Currency Conversion Pair]],"Price") -> 7.1274 | E11: =Table10[[#This Row],[Amount]]*Table10[[#This Row],[Price]] -> 406.2618 | H11: 57
B12: 77 | D12: =_FV(Table10[[#This Row],[Currency Conversion Pair]],"Price") -> 83.283 | E12: =Table10[[#This Row],[Amount]]*Table10[[#This Row],[Price]] -> 6412.791 | H12: 77
B13: 85 | D13: =_FV(Table10[[#This Row],[Currency Conversion Pair]],"Price") -> 0.9107 | E13: =Table10[[#This Row],[Amount]]*Table10[[#This Row],[Price]] -> 77.4095 | H13: 85
B14: 97 | D14: =_FV(Table10[[#This Row],[Currency Conversion Pair]],"Price") -> 18.5013 | E14: =Table10[[#This Row],[Amount]]*Table10[[#This Row],[Price]] -> 1794.6261 | H14: 97
B15: 98 | D15: =_FV(Table10[[#This Row],[Currency Conversion Pair]],"Price") -> 7.8021 | E15: =Table10[[#This Row],[Amount]]*Table10[[#This Row],[Price]] -> 764.6058 | H15: 98
B29: Back to Home

Sheet Web Query
B2: Currency Conversion in Excel
B4: Using Web Query
B6: Amount (USD) | C6: Currency to Convert | D6: Conversion Rate | E6: Converted Currency | K6: Practice Yourself
B7: 15 | C7: Euro | D7: =VLOOKUP(Table7[[#This Row],[ Currency to Convert]],Table_1[],2,0) -> 0.917381 | E7: =Table7[[#This Row],[Amount (USD)]]*Table7[[#This Row],[Conversion Rate]] -> 13.760715 | G7: US Dollar▲ | H7: 1.00 USD▲▼ | I7: inv. 1.00 USD▲▼
B8: 11 | C8: British Pound | D8: =VLOOKUP(Table7[[#This Row],[ Currency to Convert]],Table_1[],2,0) -> 0.802527 | E8: =Table7[[#This Row],[Amount (USD)]]*Table7[[#This Row],[Conversion Rate]] -> 8.827797 | G8: Argentine Peso | H8: 353.974999 | I8: 0.002825 | K8: Amount | L8: Currency to Convert | M8: Exchange Ratio | N8: Converted Amount
B9: 24 | C9: Australian Dollar | D9: =VLOOKUP(Table7[[#This Row],[ Currency to Convert]],Table_1[],2,0) -> 1.538415 | E9: =Table7[[#This Row],[Amount (USD)]]*Table7[[#This Row],[Conversion Rate]] -> 36.92196 | G9: Australian Dollar | H9: 1.538415 | I9: 0.65002 | K9: 15 | L9: Euro
B10: 84 | C10: Canadian Dollar | D10: =VLOOKUP(Table7[[#This Row],[ Currency to Convert]],Table_1[],2,0) -> 1.372028 | E10: =Table7[[#This Row],[Amount (USD)]]*Table7[[#This Row],[Conversion Rate]] -> 115.250352 | G10: Bahraini Dinar | H10: 0.376 | I10: 2.659574 | K10: 11 | L10: British Pound
B11: 57 | C11: Chinese Yuan Renminbi | D11: =VLOOKUP(Table7[[#This Row],[ Currency to Convert]],Table_1[],2,0) -> 7.203328 | E11: =Table7[[#This Row],[Amount (USD)]]*Table7[[#This Row],[Conversion Rate]] -> 410.589696 | G11: Botswana Pula | H11: 13.444558 | I11: 0.07438 | K11: 24 | L11: Australian Dollar
B12: 77 | C12: Indian Rupee | D12: =VLOOKUP(Table7[[#This Row],[ Currency to Convert]],Table_1[],2,0) -> 83.287824 | E12: =Table7[[#This Row],[Amount (USD)]]*Table7[[#This Row],[Conversion Rate]] -> 6413.162448 | G12: Brazilian Real | H12: 4.899441 | I12: 0.204105 | K12: 84 | L12: Canadian Dollar
B13: 85 | C13: Brazilian Real | D13: =VLOOKUP(Table7[[#This Row],[ Currency to Convert]],Table_1[],2,0) -> 4.899441 | E13: =Table7[[#This Row],[Amount (USD)]]*Table7[[#This Row],[Conversion Rate]] -> 416.452485 | G13: British Pound | H13: 0.802527 | I13: 1.246064 | K13: 57 | L13: Chinese Yuan Renminbi
B14: 95 | C14: South African Rand | D14: =VLOOKUP(Table7[[#This Row],[ Currency to Convert]],Table_1[],2,0) -> 18.364965 | E14: =Table7[[#This Row],[Amount (USD)]]*Table7[[#This Row],[Conversion Rate]] -> 1744.671675 | G14: Bruneian Dollar | H14: 1.343422 | I14: 0.744368 | K14: 77 | L14: Indian Rupee
B15: 98 | C15: Hong Kong Dollar | D15: =VLOOKUP(Table7[[#This Row],[ Currency to Convert]],Table_1[],2,0) -> 7.795879 | E15: =Table7[[#This Row],[Amount (USD)]]*Table7[[#This Row],[Conversion Rate]] -> 763.996142 | G15: Bulgarian Lev | H15: 1.79424 | I15: 0.557339 | K15: 85 | L15: Brazilian Real
G16: Canadian Dollar | H16: 1.372028 | I16: 0.728848 | K16: 95 | L16: South African Rand
G17: Chilean Peso | H17: 883.31321 | I17: 0.001132 | K17: 98 | L17: Hong Kong Dollar
G18: Chinese Yuan Renminbi | H18: 7.203328 | I18: 0.138825
G19: Colombian Peso | H19: 4068.072359 | I19: 0.000246
G20: Czech Koruna | H20: 22.445572 | I20: 0.044552
G21: Danish Krone | H21: 6.832147 | I21: 0.146367
G22: Emirati Dirham | H22: 3.6725 | I22: 0.272294
G23: Euro | H23: 0.917381 | I23: 1.09006
G24: Hong Kong Dollar | H24: 7.795879 | I24: 0.128273
G25: Hungarian Forint | H25: 347.374922 | I25: 0.002879
G26: Icelandic Krona | H26: 140.886454 | I26: 0.007098
G27: Indian Rupee | H27: 83.287824 | I27: 0.012007
G28: Indonesian Rupiah | H28: 15549.5446 | I28: 6.4e-05
G29: Iranian Rial | H29: 42002.66767 | I29: 2.4e-05
G30: Israeli Shekel | H30: 3.723117 | I30: 0.268592
G31: Japanese Yen | H31: 149.533532 | I31: 0.006687
G32: Kazakhstani Tenge | H32: 461.252281 | I32: 0.002168
G33: Kuwaiti Dinar | H33: 0.308313 | I33: 3.243462
G34: Libyan Dinar | H34: 4.843631 | I34: 0.206457
G35: Malaysian Ringgit | H35: 4.679467 | I35: 0.2137
G36: Mauritian Rupee | H36: 44.15989 | I36: 0.022645
G37: Mexican Peso | H37: 17.225022 | I37: 0.058055
G38: Nepalese Rupee | H38: 133.322985 | I38: 0.007501
G39: New Zealand Dollar | H39: 1.66933 | I39: 0.599043
G40: Norwegian Krone | H40: 10.794394 | I40: 0.092641
G41: Omani Rial | H41: 0.38503 | I41: 2.597203
G42: Pakistani Rupee | H42: 287.027456 | I42: 0.003484
G43: Philippine Peso | H43: 55.55924 | I43: 0.017999
G44: Polish Zloty | H44: 4.017965 | I44: 0.248882
G45: Qatari Riyal | H45: 3.64 | I45: 0.274725
G46: Romanian New Leu | H46: 4.565774 | I46: 0.219021
G47: Russian Ruble | H47: 89.82001 | I47: 0.011133
G48: Saudi Arabian Riyal | H48: 3.75 | I48: 0.266667
G49: Singapore Dollar | H49: 1.343422 | I49: 0.744368
G50: South African Rand | H50: 18.364965 | I50: 0.054452
G51: South Korean Won | H51: 1295.447665 | I51: 0.000772
G52: Sri Lankan Rupee | H52: 328.131128 | I52: 0.003048
G53: Swedish Krona | H53: 10.591676 | I53: 0.094414
G54: Swiss Franc | H54: 0.885831 | I54: 1.128884
G55: Taiwan New Dollar | H55: 31.775673 | I55: 0.031471
G56: Thai Baht | H56: 35.168331 | I56: 0.028435
G57: Trinidadian Dollar | H57: 6.764077 | I57: 0.14784
G58: Turkish Lira | H58: 28.694704 | I58: 0.03485
G59: Venezuelan Bolivar | H59: 3534709.536 | I59: 0

Sheet VBA
B3: Currency Conversion in Excel
B5: Using VBA Code
B24: Back to Home

Sheet Change Default Curency
B2: Currency Conversion in Excel
B4: Changing Default Currency
B6: Currency | C6: Conversion Rate | E6: Amount (USD) | F6: ="Convert to " & F7 -> Convert to INR | G6: Converted Currency
B7: EUR | C7: 0.93 | E7: 160 | F7: INR | G7: =VLOOKUP(F7,B7:C13,2,0)*E7 -> 13216
B8: GBP | C8: 0.8
B9: AUD | C9: 1.5
B10: CAD | C10: 1.34
B11: CNY | C11: 7.11
B12: INR | C12: 82.6
B13: BZR | C13: 4.92
B18: Back to Home

Sheet Live Currency Helper (hidden)
B2: Currency Conversion in Excel
B4: Using Live Currency Converter
B6: Amount | C6: Currency Conversion Pair
B7: 30 | C7: USD/EUR
B8: 11 | C8: USD/GBP
B9: 24 | C9: USD/AUD
B10: 84 | C10: USD/CAD
B11: 57 | C11: USD/CNY
B12: 77 | C12: USD/INR
B13: 85 | C13: USD/EUR
B14: 97 | C14: USD/ZAR
B15: 98 | C15: USD/HKD
